bitfinex-derivatives/quotes_BNBF0:USTF0_20250221
["timestamp","ask_amount","ask_price","bid_price","bid_amount"]
[1740102493804,0.88182773,653.36,652.01,1.14861604]
[1740102494104,0.30611463,653.35,652.01,1.14861604]
[1740102494304,1.90714518,653.35,652.01,1.14861604]
[1740102494503,0.88182773,653.34,652.01,1.14861604]
[1740102495807,0.903,653.33,652.01,1.14861604]
[1740102496204,0.903,653.33,651.8,1.146927]
[1740102496205,0.903,653.33,652.03,1.14861604]
[1740102498703,0.903,653.33,652.31,1.14861604]
[1740102501910,2.358,653.33,652.23,1.14861604]
[1740102504207,3.639,653.33,652.23,1.14861604]
[1740102507609,3.639,653.33,652.13,1.14861604]
[1740102512416,3.639,653.33,652.2,1.14861604]
[1740102512810,1.60114104,653.32,652.2,1.14861604]
[1740102515616,1.60114104,653.32,652.0,1.14861604]
[1740102517523,3.639,653.33,652.0,1.14861604]
[1740102517917,2.736,653.33,652.0,1.14861604]
[1740102519217,2.736,653.33,652.15,1.14861604]
[1740102521530,2.736,653.33,652.46,1.14861604]
[1740102524533,2.736,653.33,652.4,1.14861604]
[1740102526434,2.736,653.33,652.38,1.14861604]
[1740102529337,2.736,653.33,652.55,1.14861604]
[1740102531336,2.736,653.33,652.49,1.14861604]
[1740102533640,4.177,653.33,652.49,1.14861604]
[1740102534338,4.177,653.33,652.3,1.14861604]
[1740102536743,4.177,653.33,651.97,1.14861604]
[1740102538236,4.177,653.33,651.98,0.30675787]
[1740102539444,4.177,653.33,652.1,1.14861604]
[1740102541944,4.177,653.33,652.37,1.14861604]
[1740102544341,4.177,653.33,652.13,1.146927]
[1740102544342,4.177,653.33,652.66,1.14861604]
[1740102544746,1.441,653.33,652.66,1.14861604]
[1740102547153,1.441,653.33,652.47,1.146927]
[1740102547154,1.441,653.33,652.71,1.14861604]
[1740102549651,1.441,653.33,652.73,1.14861604]
[1740102552153,1.441,653.33,652.65,1.14861604]
[1740102554958,1.441,653.33,652.64,1.14861604]
[1740102556354,1.441,653.33,652.69,1.14861604]
[1740102558663,0.927,653.46,652.69,1.14861604]
[1740102558862,0.927,653.46,652.55,1.14861604]
[1740102560366,1.651,653.45,652.55,1.14861604]
[1740102561167,1.651,653.45,652.52,1.14861604]
[1740102562558,1.651,653.45,652.62,1.14861604]
[1740102565158,1.651,653.45,652.02,1.3763124]
[1740102565159,1.651,653.45,652.83,1.14861604]
[1740102568462,1.651,653.45,652.88,1.14861604]
[1740102571170,1.651,653.45,652.67,1.14861604]
[1740102572068,2.772,653.45,652.67,1.14861604]
[1740102572868,2.772,653.45,652.76,1.14861604]
[1740102576774,2.772,653.45,652.78,1.14861604]
[1740102578271,2.772,653.45,652.58,1.14861604]
[1740102581379,2.772,653.45,652.5,1.14861604]
[1740102583277,2.772,653.45,652.82,1.14861604]
[1740102584482,1.121,653.45,652.82,1.14861604]
[1740102585978,1.121,653.45,652.8,1.14861604]
[1740102588476,1.121,653.45,652.96,1.14861604]
[1740102591584,1.121,653.45,653.01,1.14861604]
[1740102594481,1.121,653.45,653.07,1.14861604]
[1740102596187,1.121,653.45,652.83,1.14861604]
[1740102598187,1.3682797,654.23,652.83,1.14861604]
[1740102598483,0.30571223,654.21,652.83,1.14861604]
[1740102598685,1.15429834,654.2,652.79,1.14861604]
[1740102598884,0.30572625,654.18,652.79,1.14861604]
[1740102599085,1.15429834,654.17,652.79,1.14861604]
[1740102599283,0.30574027,654.15,652.79,1.14861604]
[1740102599485,1.15429834,654.14,652.79,1.14861604]
[1740102599684,0.30575429,654.12,652.79,1.14861604]
[1740102599889,1.15429834,654.11,652.79,1.14861604]
[1740102600088,0.30576831,654.09,652.79,1.14861604]
[1740102600989,2.34357045,654.08,652.79,1.14861604]
[1740102601184,0.30578234,654.06,652.79,1.14861604]
[1740102601691,0.30578234,654.06,652.8,1.14861604]
[1740102604293,0.30578234,654.06,652.97,1.14861604]
[1740102604689,1.23,654.05,652.97,1.14861604]
[1740102604890,0.30579637,654.03,652.97,1.14861604]
[1740102606688,0.30579637,654.03,652.93,1.14861604]
[1740102607090,0.9016859,654.02,652.93,1.14861604]
[1740102607294,0.30581039,654.0,652.93,1.14861604]
[1740102607795,1.59955874,653.99,652.93,1.14861604]
[1740102607994,0.30582442,653.97,652.93,1.14861604]
[1740102608695,0.90169095,653.96,652.93,1.14861604]
[1740102608895,0.30583845,653.94,652.93,1.14861604]
[1740102609295,0.90169095,653.93,652.93,1.14861604]
[1740102609495,0.90169095,653.93,652.59,1.146927]
[1740102609496,0.30585248,653.91,652.84,1.14861604]
[1740102611596,0.30585248,653.91,652.67,1.14861604]
[1740102612294,1.125,653.9,652.67,1.14861604]
[1740102613999,1.125,653.9,652.7,1.14861604]
[1740102614199,0.30586651,653.88,652.7,1.14861604]
[1740102615500,1.15454574,653.87,652.7,1.14861604]
[1740102615701,0.30588055,653.85,652.7,1.14861604]
[1740102616600,0.90163634,653.84,652.7,1.14861604]
[1740102616799,0.30588991,653.83,652.66,1.14861604]
[1740102617201,0.90163634,653.82,652.66,1.14861604]
[1740102617802,1.2075356,653.81,652.66,1.14861604]
[1740102618002,0.30590394,653.8,652.66,1.14861604]
[1740102619406,0.30590394,653.8,653.0,1.14861604]
[1740102620704,1.59955262,653.79,653.0,1.14861604]
[1740102620907,0.3059133,653.78,653.0,1.14861604]
[1740102622003,0.9014667,653.77,653.0,1.14861604]
[1740102622204,0.30592266,653.76,652.9,1.14861604]
[1740102624409,0.30592266,653.76,652.19,2.34164263]
[1740102624410,0.30592266,653.76,652.59,1.14861604]
[1740102627508,0.30592266,653.76,652.95,1.14861604]
[1740102627808,1.247,653.75,652.95,1.14861604]
[1740102630011,1.247,653.75,652.7,1.14861604]
[1740102632006,1.247,653.75,652.09,1.3763124]
[1740102632007,1.247,653.75,652.94,1.14861604]
[1740102635200,1.247,653.75,652.19,2.34164263]
[1740102635201,1.247,653.75,652.89,1.14861604]
[1740102637810,1.247,653.75,653.03,1.14861604]
[1740102641213,1.247,653.75,652.94,1.14861604]
[1740102643910,0.30592266,653.76,652.94,1.14861604]
[1740102644310,0.30592266,653.76,652.39,1.3763124]
[1740102644311,0.30592266,653.76,652.83,1.14861604]
[1740102647513,0.30592266,653.76,652.79,1.14861604]
[1740102651015,0.30592266,653.76,652.8,1.14861604]
[1740102652923,0.30592266,653.76,652.81,1.14861604]
[1740102653819,0.992,653.75,652.81,1.14861604]
[1740102655426,0.992,653.75,653.03,1.14861604]
[1740102663733,0.30593202,653.74,653.03,1.14861604]
[1740102664633,0.30593202,653.74,652.94,1.14861604]
[1740102665528,1.496,653.73,652.94,1.14861604]
[1740102665727,0.30594138,653.72,652.94,1.14861604]
[1740102665925,1.66894138,653.72,652.94,1.14861604]
[1740102666830,1.66894138,653.72,652.84,1.14861604]
[1740102669635,1.59982224,653.71,652.84,1.14861604]
[1740102669933,0.30595074,653.7,652.84,1.14861604]
[1740102672732,0.30595074,653.7,652.45,1.146927]
[1740102672733,0.30595074,653.7,652.62,1.14861604]
[1740102675230,0.30595074,653.7,652.59,1.14861604]
[1740102677737,0.30595074,653.7,652.08,2.34164263]
[1740102677738,0.30595074,653.7,652.77,1.14861604]
[1740102680144,0.30595074,653.7,652.8,1.14861604]
[1740102682352,0.30595074,653.7,652.72,1.14861604]
[1740102685446,0.30595074,653.7,652.61,1.14861604]
[1740102687553,0.30595074,653.7,652.66,1.14861604]
[1740102689861,0.30595074,653.7,652.7,1.14861604]
[1740102692762,0.30595074,653.7,652.81,1.14861604]
[1740102694465,0.30595074,653.7,652.82,1.14861604]
[1740102697260,0.30595074,653.7,653.01,1.14861604]
[1740102699566,0.30595074,653.7,653.15,1.14861604]
[1740102702667,0.30595074,653.7,652.87,1.14861604]
[1740102704667,0.30595074,653.7,652.86,1.14861604]
[1740102707168,0.30595074,653.7,652.63,1.14861604]
[1740102709669,0.30595074,653.7,652.71,1.14861604]
[1740102712562,0.30595074,653.7,652.69,1.14861604]
[1740102713067,1.60095074,653.7,652.69,1.14861604]
[1740102715363,1.60095074,653.7,652.73,1.14861604]
[1740102718076,1.60095074,653.7,652.85,1.14861604]
[1740102720378,1.60095074,653.7,652.86,1.14861604]
[1740102722074,3.31295074,653.7,652.86,1.14861604]
[1740102723378,3.31295074,653.7,652.16,2.34164263]
[1740102723379,3.31295074,653.7,652.87,1.14861604]
[1740102726180,3.31295074,653.7,652.7,1.14861604]
[1740102728485,3.31295074,653.7,652.52,1.14861604]
[1740102731485,3.31295074,653.7,652.59,1.14861604]
[1740102734289,3.31295074,653.7,652.54,1.14861604]
[1740102734688,1.60012261,653.69,652.54,1.14861604]
[1740102734890,0.3059601,653.68,652.54,1.14861604]
[1740102737492,0.3059601,653.68,652.37,1.14861604]
[1740102739288,1.441,653.67,652.37,1.14861604]
[1740102739492,0.30596946,653.66,652.37,1.14861604]
[1740102740588,0.30596946,653.66,652.4,1.14861604]
[1740102741994,0.30596946,653.66,652.32,1.14861604]
[1740102744690,0.30596946,653.66,652.24,1.14861604]
[1740102747595,1.498,653.65,652.24,1.14861604]
[1740102747795,0.3059835,653.63,652.24,1.14861604]
[1740102747991,0.3059835,653.63,652.21,1.14861604]
[1740102748397,1.60054578,653.62,652.21,1.14861604]
[1740102748597,0.30599755,653.6,652.21,1.14861604]
[1740102750697,1.385,653.59,652.21,1.14861604]
[1740102750893,0.30600691,653.58,652.21,1.14861604]
[1740102751993,0.30600691,653.58,652.45,1.14861604]
[1740102753700,0.30600691,653.58,652.5,1.14861604]
[1740102756996,0.30600691,653.58,652.62,1.14861604]
[1740102760704,0.30600691,653.58,652.45,1.146927]
[1740102760705,0.30600691,653.58,652.71,1.14861604]
[1740102763202,0.30600691,653.58,652.88,1.14861604]
[1740102766407,0.30600691,653.58,652.85,1.14861604]
[1740102768904,0.30600691,653.58,652.88,1.14861604]
[1740102771612,0.30600691,653.58,652.87,1.14861604]
[1740102775016,0.30600691,653.58,652.81,1.14861604]
[1740102777912,0.30600691,653.58,652.61,1.14861604]
[1740102780812,0.30600691,653.58,652.6,1.14861604]
[1740102782617,1.69800691,653.58,652.6,1.14861604]
[1740102783016,1.69800691,653.58,652.84,1.14861604]
[1740102786120,1.69800691,653.58,652.91,1.14861604]
[1740102788523,1.69800691,653.58,652.99,1.14861604]
[1740102791120,1.69800691,653.58,652.81,1.14861604]
[1740102793526,1.69800691,653.58,652.88,1.14861604]
[1740102796127,1.69800691,653.58,652.91,1.14861604]
[1740102799032,1.69800691,653.58,652.99,1.14861604]
[1740102801128,1.69800691,653.58,653.08,1.14861604]
[1740102803439,1.69800691,653.58,653.09,1.14861604]
[1740102805939,1.69800691,653.58,653.04,1.14861604]
[1740102808541,1.69800691,653.58,653.06,1.14861604]
[1740102809538,0.30600691,653.58,653.06,1.14861604]
[1740102814343,0.30600691,653.58,652.93,1.14861604]
[1740102817849,0.30600691,653.58,652.97,1.14861604]
[1740102820550,0.30600691,653.58,653.12,1.14861604]
[1740102822956,0.30600691,653.58,653.14,1.14861604]
[1740102828255,0.30600691,653.58,653.0,1.14861604]
[1740102830851,0.30600691,653.58,653.06,1.14861604]
[1740102832660,1.303,653.82,653.06,1.14861604]
[1740102833957,1.303,653.82,652.96,1.14861604]
[1740102836263,1.303,653.82,653.15,1.14861604]
[1740102838559,1.303,653.82,653.11,1.14861604]
[1740102840765,1.303,653.82,653.1,1.14861604]
[1740102842068,1.3682797,654.86,653.1,1.14861604]
[1740102842265,0.30541811,654.84,653.1,1.14861604]
[1740102842461,1.1506556,654.83,653.1,1.14861604]
[1740102842660,1.1506556,654.82,653.1,1.14861604]
[1740102842866,0.30543677,654.8,653.1,1.14861604]
[1740102843169,1.1506556,654.79,653.1,1.14861604]
[1740102843363,0.30545076,654.77,653.1,1.14861604]
[1740102843562,1.3682797,654.54,652.87,1.14861604]
[1740102843763,1.1506556,654.53,652.87,1.14861604]
[1740102843961,0.3055721,654.51,652.87,1.14861604]
[1740102844267,3.44736768,654.5,652.87,1.14861604]
[1740102844463,0.30558611,654.48,652.87,1.14861604]
[1740102844663,1.1506556,654.47,652.87,1.14861604]
[1740102844862,0.30560012,654.45,652.87,1.14861604]
[1740102845067,1.1506556,654.44,652.87,1.14861604]
[1740102845266,1.1506556,654.43,652.87,1.14861604]
[1740102845463,0.3056188,654.41,652.87,1.14861604]
[1740102845668,1.1506556,654.4,652.87,1.14861604]
[1740102845965,0.30563281,654.38,652.87,1.14861604]
[1740102846172,1.1506556,654.37,652.87,1.14861604]
[1740102846368,0.30564682,654.35,652.87,1.14861604]
[1740102846568,1.1506556,654.34,652.87,1.14861604]
[1740102846766,0.30566083,654.32,652.87,1.14861604]
[1740102846967,1.1506556,654.31,652.87,1.14861604]
[1740102847272,0.30567485,654.29,652.87,1.14861604]
[1740102847474,1.1506556,654.28,652.87,1.14861604]
[1740102847675,0.30568886,654.26,652.87,1.14861604]
[1740102847875,1.1506556,654.25,652.87,1.14861604]
[1740102848076,0.30570288,654.23,652.87,1.14861604]
[1740102848277,1.1506556,654.22,652.87,1.14861604]
[1740102848476,0.3057169,654.2,652.87,1.14861604]
[1740102848776,1.1506556,654.19,652.92,1.14861604]
[1740102848972,0.30573092,654.17,652.92,1.14861604]
[1740102849173,1.1506556,654.16,652.92,1.14861604]
[1740102849374,0.30574494,654.14,652.92,1.14861604]
[1740102849678,1.1506556,654.13,652.92,1.14861604]
[1740102849874,0.30575897,654.11,652.92,1.14861604]
[1740102850075,1.1506556,654.1,652.92,1.14861604]
[1740102850275,0.30576831,654.09,652.92,1.14861604]
[1740102850475,1.1506556,654.08,652.92,1.14861604]
[1740102850677,0.30577766,654.07,652.92,1.14861604]
[1740102850876,1.1506556,654.06,652.92,1.14861604]
[1740102851177,2.60257671,654.05,652.92,1.14861604]
[1740102851377,1.45644729,654.04,653.06,1.14861604]
[1740102851571,1.45645197,654.03,653.06,1.14861604]
[1740102851872,1.45645664,654.02,653.06,1.14861604]
[1740102852178,1.45646132,654.01,653.06,1.14861604]
[1740102852478,0.30581039,654.0,653.06,1.14861604]
[1740102852679,1.18916119,654.0,653.06,1.14861604]
[1740102853677,0.8833508,653.99,653.06,1.14861604]
[1740102853876,0.30581974,653.98,653.06,1.14861604]
[1740102854071,0.30581974,653.98,653.09,1.14861604]
[1740102854573,0.8833508,653.97,653.09,1.14861604]
[1740102854778,0.3058291,653.96,653.09,1.14861604]
[1740102855282,0.8833508,653.95,653.09,1.14861604]
[1740102855477,0.30583845,653.94,653.09,1.14861604]
[1740102859482,0.30583845,653.94,652.66,1.14861604]
[1740102862083,0.30583845,653.94,652.7,1.14861604]
[1740102864899,0.30583845,653.94,652.8,1.14861604]
[1740102867093,0.30583845,653.94,653.17,1.14861604]
[1740102869396,0.30583845,653.94,653.26,1.14861604]
[1740102872799,0.30583845,653.94,653.28,1.14861604]
[1740102874699,0.30583845,653.94,652.77,2.34164263]
[1740102874700,0.30583845,653.94,653.3,1.14861604]
[1740102877601,0.30583845,653.94,653.27,1.14861604]
[1740102880603,0.30583845,653.94,653.15,1.14861604]
[1740102882004,1.442,654.04,653.15,1.14861604]
[1740102882897,1.442,654.04,652.62,2.34164263]
[1740102882898,1.442,654.04,653.14,1.14861604]
[1740102885806,1.442,654.04,653.02,1.14861604]
[1740102888106,1.442,654.04,653.23,1.14861604]
[1740102890710,1.442,654.04,653.24,1.14861604]
[1740102892807,1.3682797,655.66,653.24,1.14861604]
[1740102893108,1.3682797,655.52,653.31,1.14861604]
[1740102893313,0.30515249,655.41,653.31,1.14861604]
[1740102893511,3.43803616,655.4,653.31,1.14861604]
[1740102893712,0.30520372,655.3,653.31,1.14861604]
[1740102893913,1.14752287,655.29,653.31,1.14861604]
[1740102894111,0.30521769,655.27,653.31,1.14861604]
[1740102894309,3.43794577,655.26,653.31,1.14861604]
[1740102894515,0.30523167,655.24,653.31,1.14861604]
[1740102894708,1.14752287,655.23,653.31,1.14861604]
[1740102894912,0.30524564,655.21,653.31,1.14861604]
[1740102895108,1.14752287,655.2,653.31,1.14861604]
[1740102895311,0.30525962,655.18,653.31,1.14861604]
[1740102895514,1.14752287,655.17,653.38,1.14861604]
[1740102895714,0.3052736,655.15,653.38,1.14861604]
[1740102895910,1.14752287,655.14,653.38,1.14861604]
[1740102896110,0.30528758,655.12,653.38,1.14861604]
[1740102896309,3.43794577,655.11,653.38,1.14861604]
[1740102896512,0.30530156,655.09,653.38,1.14861604]
[1740102896715,1.14752287,655.08,653.38,1.14861604]
[1740102896917,0.30531554,655.06,653.38,1.14861604]
[1740102897115,1.14752287,655.05,653.38,1.14861604]
[1740102897312,0.30532952,655.03,653.38,1.14861604]
[1740102897516,1.14752287,655.02,653.38,1.14861604]
[1740102897718,0.30534351,655.0,653.38,1.14861604]
[1740102897917,1.14752287,654.99,653.38,1.14861604]
[1740102898112,0.30535749,654.97,653.38,1.14861604]
[1740102898417,1.14752287,654.96,653.38,1.14861604]
[1740102898618,0.30537148,654.94,653.38,1.14861604]
[1740102898917,1.14752287,654.93,653.38,1.14861604]
[1740102899217,0.30538547,654.91,653.38,1.14861604]
[1740102899619,2.2904229,654.9,653.41,1.14861604]
[1740102899813,0.30539946,654.88,653.41,1.14861604]
[1740102900217,1.106,654.87,653.41,1.14861604]
[1740102900418,0.30541345,654.85,653.41,1.14861604]
[1740102900617,1.14671035,654.84,653.41,1.14861604]
[1740102900818,1.14671035,654.83,653.41,1.14861604]
[1740102901014,1.14671035,654.82,653.41,1.14861604]
[1740102901219,0.30543211,654.81,653.41,1.14861604]
[1740102901419,3.43502593,654.8,653.41,1.14861604]
[1740102901615,0.3054461,654.78,653.41,1.14861604]
[1740102901921,1.14660512,654.77,653.41,1.14861604]
[1740102902117,0.30546009,654.75,653.41,1.14861604]
[1740102902322,1.14660512,654.74,653.41,1.14861604]
[1740102902519,0.30547409,654.72,653.41,1.14861604]
[1740102902716,0.30547409,654.72,652.83,2.34164263]
[1740102902717,1.14660512,654.71,653.04,1.14861604]
[1740102902921,0.30548809,654.69,653.04,1.14861604]
[1740102903221,1.14656499,654.68,653.04,1.14861604]
[1740102903418,1.14656499,654.67,653.04,1.14861604]
[1740102903619,1.14656499,654.66,653.04,1.14861604]
[1740102903821,1.14656499,654.65,653.04,1.14861604]
[1740102904022,1.14656499,654.64,653.04,1.14861604]
[1740102904416,2.28842081,654.63,653.04,1.14861604]
[1740102904620,1.14656499,654.62,653.04,1.14861604]
[1740102904919,2.28842081,654.61,653.04,1.14861604]
[1740102905318,2.28842081,654.61,652.97,1.14861604]
[1740102905818,0.30553009,654.6,652.97,1.14861604]
[1740102906023,1.18569194,654.6,652.97,1.14861604]
[1740102906525,0.88016185,654.59,652.97,1.14861604]
[1740102906728,0.30553942,654.58,652.97,1.14861604]
[1740102907121,0.88016185,654.57,652.97,1.14861604]
[1740102907522,0.30554876,654.56,652.97,1.14861604]
[1740102908123,0.30554876,654.56,652.98,0.30628809]
[1740102911632,0.30554876,654.56,653.19,1.14861604]
[1740102913832,0.30554876,654.56,653.16,1.14861604]
[1740102916738,0.30554876,654.56,653.35,1.14861604]
[1740102918140,1.59784505,654.55,653.35,1.14861604]
[1740102919233,1.59784505,654.55,652.98,0.30628809]
[1740102919234,1.59784505,654.55,653.43,1.14861604]
[1740102919844,0.3055581,654.54,653.43,1.14861604]
[1740102921034,1.432,654.53,653.43,1.14861604]
[1740102921240,0.30556743,654.52,653.43,1.14861604]
[1740102922444,0.30556743,654.52,653.39,1.14861604]
[1740102925545,0.30556743,654.52,653.25,1.14861604]
[1740102927545,0.30556743,654.52,653.36,1.14861604]
[1740102930049,0.30556743,654.52,653.38,1.14861604]
[1740102933350,0.30556743,654.52,653.25,1.14861604]
[1740102936260,0.30556743,654.52,653.31,1.14861604]
[1740102936860,1.178,654.51,653.31,1.14861604]
[1740102937060,0.30557677,654.5,653.31,1.14861604]
[1740102939359,0.30557677,654.5,653.37,1.14861604]
[1740102941463,0.30557677,654.5,652.86,1.3763124]
[1740102941464,0.30557677,654.5,653.45,1.14861604]
[1740102943766,0.30557677,654.5,653.59,1.14861604]
[1740102946370,0.30557677,654.5,653.56,1.14861604]
[1740102947872,0.30557677,654.5,653.48,1.14861604]
[1740102950165,0.30557677,654.5,653.47,1.14861604]
[1740102952474,0.30557677,654.5,653.32,1.14861604]
[1740102954175,0.30557677,654.5,653.22,1.14861604]
[1740102957073,0.30557677,654.5,653.41,1.14861604]
[1740102961577,0.30557677,654.5,653.43,1.14861604]
[1740102964082,0.30557677,654.5,653.53,1.14861604]
[1740102967185,0.30557677,654.5,653.58,1.14861604]
[1740102970194,0.30557677,654.5,653.57,1.14861604]
[1740102972897,0.30557677,654.5,653.52,1.14861604]
[1740102973996,0.87285584,654.49,653.52,1.14861604]
[1740102974297,0.30559078,654.47,653.52,1.14861604]
[1740102974993,0.87285584,654.46,653.52,1.14861604]
[1740102975191,0.30560479,654.44,653.52,1.14861604]
[1740102975395,1.15316305,654.43,652.9,1.14861604]
[1740102975596,1.15316305,654.42,652.9,1.14861604]
[1740102975796,1.15316305,654.41,652.9,1.14861604]
[1740102975997,1.15316305,654.4,652.9,1.14861604]
[1740102976297,0.30563281,654.38,652.9,1.14861604]
[1740102978803,0.30563281,654.38,653.25,1.14861604]
[1740102981007,0.30563281,654.38,653.26,1.14861604]
[1740102983003,0.30563281,654.38,653.3,1.14861604]
[1740102983505,1.59807741,654.37,653.3,1.14861604]
[1740102983805,0.30564215,654.36,653.3,1.14861604]
[1740102986406,0.30564215,654.36,653.36,1.14861604]
[1740102988404,0.30564215,654.36,653.48,1.14861604]
[1740102993717,0.30564215,654.36,653.32,1.14861604]
[1740102997315,1.086,654.35,653.32,1.14861604]
[1740102997515,0.30565149,654.34,653.32,1.14861604]
[1740102999017,0.30565149,654.34,652.84,2.34164263]
[1740102999018,0.30565149,654.34,653.3,1.14861604]
[1740103001522,0.30565149,654.34,653.37,1.14861604]
[1740103003919,0.30565149,654.34,653.38,1.14861604]
[1740103006327,0.30565149,654.34,653.36,1.14861604]
[1740103008429,0.87422962,654.33,653.22,1.14861604]
[1740103008728,0.30566083,654.32,653.22,1.14861604]
[1740103009924,0.8744366,654.31,653.22,1.14861604]
[1740103010126,0.30567018,654.3,653.22,1.14861604]
[1740103011331,0.30567018,654.3,653.2,1.14861604]
[1740103015132,0.30567018,654.3,652.56,2.34164263]
[1740103015133,0.30567018,654.3,653.26,1.14861604]
[1740103016933,0.30567018,654.3,652.53,2.34164263]
[1740103016934,0.30567018,654.3,653.39,1.14861604]
[1740103018034,1.59837713,654.29,653.39,1.14861604]
[1740103018234,0.30567952,654.28,653.39,1.14861604]
[1740103019831,0.30567952,654.28,653.38,1.14861604]
[1740103022136,1.266,654.27,653.38,1.14861604]
[1740103022431,0.30568886,654.26,653.38,1.14861604]
[1740103023338,0.30568886,654.26,653.26,1.14861604]
[1740103025042,1.197,654.25,653.26,1.14861604]
[1740103025238,0.30569821,654.24,653.26,1.14861604]
[1740103025537,0.30569821,654.24,653.42,1.14861604]
[1740103031047,0.30569821,654.24,653.56,1.14861604]
[1740103035651,0.30569821,654.24,653.47,1.14861604]
[1740103038251,0.30569821,654.24,653.48,1.14861604]
[1740103038546,1.832,654.23,653.48,1.14861604]
[1740103040952,1.832,654.23,653.49,1.14861604]
[1740103043455,1.832,654.23,653.5,1.14861604]
[1740103045849,1.832,654.23,653.43,1.14861604]
[1740103048257,1.832,654.23,653.38,1.14861604]
[1740103049259,0.30570756,654.22,653.38,1.14861604]
[1740103050961,0.30570756,654.22,652.77,2.34164263]
[1740103050962,0.30570756,654.22,653.23,1.14861604]
[1740103053864,0.30570756,654.22,653.39,1.14861604]
[1740103056365,0.30570756,654.22,653.46,1.14861604]
[1740103058672,1.251,654.21,653.45,1.14861604]
[1740103058976,0.3057169,654.2,653.45,1.14861604]
[1740103059766,1.59857292,654.19,653.45,1.14861604]
[1740103060074,1.59857292,654.19,653.3,1.14861604]
[1740103060267,0.30572625,654.18,653.3,1.14861604]
[1740103062774,0.30572625,654.18,653.14,1.14861604]
[1740103064674,0.30572625,654.18,653.15,1.14861604]
[1740103070386,0.30572625,654.18,653.31,1.14861604]
[1740103072686,0.30572625,654.18,653.41,1.14861604]
[1740103073084,1.027,654.17,653.41,1.14861604]
[1740103074688,1.027,654.17,652.78,2.34164263]
[1740103074689,1.027,654.17,653.2,1.14861604]
[1740103076284,1.298,654.16,653.2,1.14861604]
[1740103076489,1.298,654.16,653.23,1.14861604]
[1740103079785,1.298,654.16,653.25,1.14861604]
[1740103082892,1.298,654.16,653.3,1.14861604]
[1740103086394,1.298,654.16,652.48,1.3763124]
[1740103086395,1.298,654.16,653.37,1.14861604]
[1740103089197,1.298,654.16,653.34,1.14861604]
[1740103091995,1.298,654.16,653.44,1.14861604]
[1740103094503,1.298,654.16,653.54,1.14861604]
[1740103099506,1.298,654.16,653.39,1.14861604]
[1740103101808,1.298,654.16,653.42,1.14861604]
[1740103103405,0.30574027,654.15,653.42,1.14861604]
[1740103107511,0.30574027,654.15,653.48,1.14861604]
[1740103110511,0.30574027,654.15,653.47,1.14861604]
[1740103114422,0.30574027,654.15,653.31,1.14861604]
[1740103114722,1.406,654.14,653.31,1.14861604]
[1740103120930,1.406,654.14,653.39,1.14861604]
[1740103124132,1.406,654.14,653.35,1.14861604]
[1740103126634,1.406,654.14,653.34,1.14861604]
[1740103128336,1.406,654.14,653.35,1.14861604]
[1740103130539,1.188,654.13,653.35,1.14861604]
[1740103130940,1.188,654.13,653.36,1.14861604]
[1740103134040,1.188,654.13,653.53,1.14861604]
[1740103136742,1.188,654.13,653.36,1.14861604]
[1740103139249,1.188,654.13,653.33,1.14861604]
[1740103140545,0.932,654.12,653.33,1.14861604]
[1740103145355,0.932,654.12,653.09,1.146927]
[1740103145356,0.932,654.12,653.45,1.14861604]
[1740103147656,0.932,654.12,653.42,1.14861604]
[1740103150453,0.932,654.12,653.39,1.14861604]
[1740103151458,1.188,654.13,653.39,1.14861604]
[1740103153356,1.188,654.13,653.29,1.14861604]
[1740103154759,1.164,654.12,653.29,1.14861604]
[1740103156657,1.164,654.12,653.27,1.14861604]
[1740103158655,1.164,654.12,653.51,1.14861604]
[1740103161764,1.164,654.12,653.5,1.14861604]
[1740103163959,1.164,654.12,653.43,1.14861604]
[1740103166266,1.164,654.12,653.44,1.14861604]
[1740103168866,0.30574027,654.15,653.44,1.14861604]
[1740103169066,0.30574027,654.15,653.45,1.14861604]
[1740103174473,0.30574027,654.15,653.38,1.14861604]
[1740103179973,0.30574027,654.15,653.55,1.14861604]
[1740103182270,0.30574027,654.15,653.56,1.14861604]
[1740103185576,0.30574027,654.15,653.55,1.14861604]
[1740103189191,0.30574027,654.15,653.4,1.14861604]
[1740103194894,1.59858516,654.14,653.4,1.14861604]
[1740103195392,1.59858516,654.14,653.41,1.14861604]
[1740103198196,1.9043301,654.14,653.41,1.14861604]
[1740103198396,0.30574962,654.13,653.56,1.14861604]
[1740103200801,0.30574962,654.13,653.34,1.14861604]
[1740103202805,0.30574962,654.13,652.71,1.14861604]
[1740103205508,0.30574962,654.13,651.57,2.34164263]
[1740103205509,0.30574962,654.13,652.63,1.14861604]
[1740103206706,1.023,654.12,652.63,1.14861604]
[1740103206906,0.30576364,654.1,652.63,1.14861604]
[1740103208106,0.30576364,654.1,652.72,1.14861604]
[1740103210608,0.30576364,654.1,652.95,1.14861604]